bitfinex/quotes_SOLUSD_20250529
["timestamp","ask_amount","ask_price","bid_price","bid_amount"]
[1748541499969,5.9304946,168.62,168.57,40.1633236]
[1748541500178,5.9304946,168.62,168.61,21.51367474]
[1748541501069,5.93014291,168.63,168.6,0.28432314]
[1748541501276,5.93014291,168.63,168.59,40.1633236]
[1748541504667,27.44381765,168.63,168.58,26.28432314]
[1748541504894,27.44381765,168.63,168.57,29.3]
[1748541504895,21.51367474,168.61,168.57,29.3]
[1748541505096,5.93084633,168.61,168.58,21.51367474]
[1748541506305,36.82,168.64,168.61,18.64964886]
[1748541506996,14.82338898,168.66,168.62,21.51367474]
[1748541507180,5.92979127,168.64,168.61,18.64964886]
[1748541507581,5.92979127,168.64,168.61,40.1633236]
[1748541507884,5.92979127,168.64,168.62,21.79799788]
[1748541508082,5.92979127,168.64,168.6,18.64964886]
[1748541508391,5.92979127,168.64,168.61,21.51367474]
[1748541509004,5.9290881,168.66,168.63,21.51367474]
[1748541509182,42.80873658,168.67,168.64,21.51367474]
[1748541509505,5.92873658,168.67,168.64,21.51367474]
[1748541510898,5.9283851,168.68,168.66,21.51367474]
[1748541511098,7.9399,168.72,168.64,18.64964886]
[1748541511099,5.92733092,168.71,168.67,21.51367474]
[1748541511410,5.92733092,168.71,168.7,21.51367474]
[1748541511608,14.81713735,168.73,168.7,21.51367474]
[1748541511609,5.92662834,168.73,168.7,21.51367474]
[1748541511993,5.92662834,168.73,168.68,0.14216157]
[1748541512310,5.92662834,168.73,168.7,21.51367474]
[1748541512615,5.92662834,168.73,168.72,21.51367474]
[1748541512913,5.92592592,168.75,168.72,21.51367474]
[1748541513112,5.92592592,168.75,168.69,0.28432314]
[1748541513295,20.74074073,168.75,168.69,19.07613357]
[1748541513495,42.25441547,168.75,168.7,21.51367474]
[1748541513703,20.74074073,168.75,168.71,21.51367474]
[1748541513906,21.51367474,168.74,168.69,21.51367474]
[1748541514585,58.39367474,168.74,168.69,21.51367474]
[1748541514783,5.92662834,168.73,168.69,21.51367474]
[1748541515007,20.74319919,168.73,168.69,21.51367474]
[1748541515516,20.74319919,168.73,168.7,21.51367474]
[1748541515720,20.74319919,168.73,168.67,19.07613357]
[1748541515721,5.92662834,168.73,168.71,21.51367474]
[1748541516413,42.25687393,168.73,168.68,47.51367474]
[1748541516713,20.74319919,168.73,168.69,21.51367474]
[1748541518098,5.92662834,168.73,168.71,21.51367474]
[1748541518299,5.92662834,168.73,168.72,21.51367474]
[1748541518499,5.92662834,168.73,168.71,21.51367474]
[1748541518792,5.92662834,168.73,168.7,21.51367474]
[1748541519322,5.92627711,168.74,168.71,21.51367474]
[1748541519810,5.92627711,168.74,168.72,21.51367474]
[1748541519999,5.92627711,168.74,168.73,21.51367474]
[1748541520535,5.92627711,168.74,168.71,21.51367474]
[1748541521224,5.92627711,168.74,168.7,21.51367474]
[1748541522417,5.92627711,168.74,168.69,55.58432314]
[1748541522619,5.92627711,168.74,168.71,21.51367474]
[1748541523509,20.74101036,168.75,168.71,21.51367474]
[1748541526824,20.74101036,168.75,168.69,26.28432314]
[1748541527126,21.51367474,168.73,168.65,0.28432314]
[1748541527316,21.51367474,168.72,168.67,21.51367474]
[1748541527694,5.92733092,168.71,168.68,21.51367474]
[1748541528329,20.74565822,168.71,168.66,29.3]
[1748541528500,21.51367474,168.68,168.66,29.3]
[1748541528834,21.51367474,168.68,168.64,0.28432314]
[1748541529031,21.51367474,168.69,168.64,21.79799788]
[1748541529514,20.74565822,168.71,168.68,21.51367474]
[1748541529899,20.74565822,168.71,168.64,18.79181043]
[1748541530099,20.74565822,168.71,168.63,26.0]
[1748541530300,20.74565822,168.71,168.66,21.51367474]
[1748541530524,20.74565822,168.71,168.67,21.51367474]
[1748541530926,5.92733092,168.71,168.68,21.51367474]
[1748541531925,5.92733092,168.71,168.67,21.51367474]
[1748541532143,5.92733092,168.71,168.68,21.51367474]
[1748541532319,5.92733092,168.71,168.7,21.51367474]
[1748541533330,21.51367474,168.76,168.7,40.58980831]
[1748541533544,36.82,168.76,168.71,0.28432314]
[1748541533748,36.82,168.76,168.72,21.51367474]
[1748541534249,42.74557478,168.76,168.72,21.51367474]
[1748541534549,5.92557478,168.76,168.72,21.51367474]
[1748541536218,5.92557478,168.76,168.73,21.51367474]
[1748541536558,8.55365542,168.8,168.74,18.79181043]
[1748541536727,8.55365542,168.8,168.76,21.51367474]
[1748541536933,20.73582557,168.79,168.75,21.65583631]
[1748541538433,42.24950031,168.79,168.75,0.14216157]
[1748541538660,42.24950031,168.79,168.75,21.65583631]
[1748541538661,20.73582557,168.79,168.75,21.65583631]
[1748541538815,20.73582557,168.79,168.76,21.51367474]
[1748541539443,20.73582557,168.79,168.75,21.65583631]
[1748541540629,42.24950031,168.79,168.74,21.65583631]
[1748541540823,20.73582557,168.79,168.76,21.51367474]
[1748541541621,20.73582557,168.79,168.75,21.51367474]
[1748541541819,20.73582557,168.79,168.76,21.51367474]
[1748541543760,20.73582557,168.79,168.77,21.51367474]
[1748541544160,20.73582557,168.79,168.76,21.51367474]
[1748541546043,5.92452159,168.79,168.77,21.51367474]
[1748541546270,5.92452159,168.79,168.78,21.51367474]
[1748541547355,5.9242492,168.8,168.78,21.51367474]
[1748541547591,5.9242492,168.8,168.79,21.51367474]
[1748541547880,5.92311792,168.83,168.79,50.81367474]
[1748541548046,5.92311792,168.83,168.8,21.51367474]
[1748541549452,5.92276711,168.84,168.8,21.51367474]
[1748541550068,5.92276711,168.84,168.82,21.51367474]
[1748541550381,5.92276711,168.84,168.8,21.51367474]
[1748541550589,20.7296849,168.84,168.8,21.51367474]
[1748541551081,20.7296849,168.84,168.81,21.51367474]
[1748541551452,5.92241634,168.85,168.82,21.51367474]
[1748541551652,5.92241634,168.85,168.81,21.51367474]
[1748541552560,42.24213194,168.85,168.81,0.14216157]
[1748541552758,42.24213194,168.85,168.81,18.933972]
[1748541555371,42.24213194,168.85,168.8,29.3]
[1748541555372,21.51367474,168.84,168.8,29.3]
[1748541555575,5.92311792,168.83,168.8,29.3]
[1748541556084,5.92311792,168.83,168.8,50.81367474]
[1748541556685,20.7296849,168.84,168.8,50.81367474]
[1748541558078,21.51367474,168.82,168.8,29.3]
[1748541558252,21.51367474,168.83,168.8,29.3]
[1748541558857,5.92346878,168.82,168.8,29.3]
[1748541559055,5.92346878,168.82,168.78,51.09799788]
[1748541559753,5.92346878,168.82,168.8,21.51367474]
[1748541559955,21.51367474,168.86,168.81,21.51367474]
[1748541560153,5.92241634,168.85,168.81,21.51367474]
[1748541564862,5.92241634,168.85,168.81,50.81367474]
[1748541565263,20.7284572,168.85,168.81,50.81367474]
[1748541565868,42.24213194,168.85,168.81,29.3]
[1748541566781,21.51367474,168.84,168.81,29.3]
[1748541567591,21.51367474,168.83,168.81,29.3]
[1748541567794,27.43714352,168.82,168.81,29.3]
[1748541567985,78.88581547,168.82,168.74,18.64964886]
[1748541568194,78.88581547,168.82,168.75,0.28432314]
[1748541568195,21.51367474,168.79,168.75,0.28432314]
[1748541569380,5.92487261,168.78,168.74,40.1633236]
[1748541569581,5.92487261,168.78,168.75,21.51367474]
[1748541571366,36.32419085,168.8,168.76,21.51367474]
[1748541571367,5.92452159,168.79,168.76,21.51367474]
[1748541571571,5.92452159,168.79,168.77,21.51367474]
[1748541572470,5.92452159,168.79,168.77,0.28432314]
[1748541572667,5.92381967,168.81,168.77,40.58980831]
[1748541572871,5.92381967,168.81,168.79,21.51367474]
[1748541573489,5.92346878,168.82,168.79,21.51367474]
[1748541573898,5.92346878,168.82,168.8,21.51367474]
[1748541574193,5.92346878,168.82,168.79,21.94015945]
[1748541574502,5.92346878,168.82,168.79,21.79799788]
[1748541575084,5.92346878,168.82,168.79,0.28432314]
[1748541575384,5.92346878,168.82,168.79,21.79799788]
[1748541577399,5.92346878,168.82,168.79,0.28432314]
[1748541578296,5.92346878,168.82,168.78,21.51367474]
[1748541578882,27.43714352,168.82,168.78,21.51367474]
[1748541579788,27.43714352,168.82,168.78,50.81367474]
[1748541580491,5.92346878,168.82,168.79,47.51367474]
[1748541580904,21.51367474,168.81,168.77,29.3]
[1748541581109,21.51367474,168.78,168.76,29.3]
[1748541581308,21.51367474,168.77,168.73,29.3]
[1748541581509,36.6,168.8,168.74,21.51367474]
[1748541581811,36.6,168.8,168.76,21.51367474]
[1748541582390,42.52448351,168.8,168.76,21.51367474]
[1748541585500,20.73214073,168.82,168.77,21.94015945]
[1748541585713,78.88581547,168.82,168.77,21.79799788]
[1748541585904,21.51367474,168.8,168.76,21.51367474]
[1748541586289,21.51367474,168.8,168.76,0.28432314]
[1748541586909,21.51367474,168.8,168.76,21.79799788]
[1748541587207,36.62,168.81,168.76,21.79799788]
[1748541587208,5.92452159,168.79,168.76,21.79799788]
[1748541590693,20.73459715,168.8,168.76,0.28432314]
[1748541590899,42.24827189,168.8,168.76,0.28432314]
[1748541592901,42.24827189,168.8,168.76,21.79799788]
[1748541594416,5.92417061,168.8,168.76,21.79799788]
[1748541594620,5.92417061,168.8,168.77,21.51367474]
[1748541597599,5.92417061,168.8,168.76,21.79799788]
[1748541598439,20.73459715,168.8,168.76,21.79799788]
[1748541599328,21.51367474,168.79,168.75,0.28432314]
[1748541599624,20.73459715,168.8,168.75,21.79799788]
[1748541599793,20.73459715,168.8,168.76,21.51367474]
[1748541599994,5.92417061,168.8,168.77,21.51367474]
[1748541600218,5.92417061,168.8,168.76,18.933972]
[1748541600219,6.1296,168.84,168.79,21.51367474]
[1748541600419,6.3831,168.88,168.8,18.79181043]
[1748541600594,6.3831,168.88,168.85,21.51367474]
[1748541601033,20.72600224,168.87,168.81,26.28432314]
[1748541601208,21.51367474,168.86,168.81,21.51367474]
[1748541601409,20.72600224,168.87,168.82,21.51367474]
[1748541601595,42.23967698,168.87,168.82,21.51367474]
[1748541602405,42.23967698,168.87,168.8,19.07613357]
[1748541602612,21.51367474,168.86,168.81,21.51367474]
[1748541602804,21.51367474,168.85,168.8,21.51367474]
[1748541603014,21.51367474,168.83,168.78,21.51367474]
[1748541603723,5.92487261,168.78,168.75,18.64964886]
[1748541603930,36.64,168.82,168.77,21.51367474]
[1748541604134,36.64,168.82,168.78,21.51367474]
[1748541604432,5.92381967,168.81,168.77,21.51367474]
[1748541604613,5.92381967,168.81,168.79,21.51367474]
[1748541604814,5.92381967,168.81,168.78,21.51367474]
[1748541605017,5.92381967,168.81,168.77,21.51367474]
[1748541605621,5.92381967,168.81,168.78,21.51367474]
[1748541606509,5.92381967,168.81,168.77,21.51367474]
[1748541608434,21.51367474,168.8,168.75,21.51367474]
[1748541608615,21.51367474,168.76,168.74,9.62]
[1748541608934,21.51367474,168.76,168.71,40.1633236]
[1748541608935,62.68,168.78,168.71,21.51367474]
[1748541609118,21.51367474,168.76,168.71,21.51367474]
[1748541609706,5.92592592,168.75,168.71,21.51367474]
[1748541610930,5.92592592,168.75,168.69,28.26964886]
[1748541610931,42.25441547,168.75,168.7,21.51367474]
[1748541611104,21.51367474,168.74,168.69,9.62]
[1748541611302,21.51367474,168.73,168.69,9.62]
[1748541611505,20.74074073,168.75,168.69,9.62]
[1748541611506,21.51367474,168.74,168.69,31.13367474]
[1748541611729,5.92662834,168.73,168.7,21.51367474]
[1748541611912,5.92662834,168.73,168.69,31.13367474]
[1748541612111,27.44030308,168.73,168.69,9.62]
[1748541612419,21.51367474,168.71,168.68,9.28764892]
[1748541612615,21.51367474,168.7,168.68,9.28764892]
[1748541612820,20.74319919,168.73,168.68,9.28764892]
[1748541612821,21.51367474,168.69,168.68,9.28764892]
[1748541613716,27.44170841,168.69,168.68,9.28764892]
[1748541615314,5.92803367,168.69,168.68,9.28764892]
[1748541616629,27.44170841,168.69,168.68,9.28764892]
[1748541616811,5.92803367,168.69,168.68,9.28764892]
[1748541617016,5.92662834,168.73,168.68,30.80132366]
[1748541617217,5.92522367,168.77,168.72,21.51367474]
[1748541617433,5.92522367,168.77,168.69,19.07613357]
[1748541617647,5.92522367,168.77,168.73,21.51367474]
[1748541617822,27.43889841,168.77,168.72,21.51367474]
[1748541619037,21.51367474,168.76,168.72,0.28432314]
[1748541619648,21.51367474,168.75,168.71,0.28432314]
[1748541619848,21.51367474,168.76,168.7,9.62]
[1748541620148,21.51367474,168.74,168.7,9.62]
[1748541620326,21.51367474,168.75,168.7,31.13367474]
[1748541620746,21.51367474,168.73,168.7,9.62]
[1748541620921,5.92697961,168.72,168.69,21.51367474]
[1748541621125,5.92697961,168.72,168.69,0.28432314]
[1748541621326,5.92697961,168.72,168.68,35.28764892]
[1748541621636,27.44065435,168.72,168.68,56.80132366]
[1748541621834,5.92697961,168.72,168.68,56.80132366]
[1748541622237,27.44065435,168.72,168.68,56.80132366]
[1748541622435,5.92697961,168.72,168.7,21.51367474]
[1748541622649,5.92697961,168.72,168.69,21.51367474]
[1748541623022,27.44030308,168.73,168.68,35.28764892]
[1748541623248,27.44030308,168.73,168.68,56.80132366]
[1748541624854,27.44030308,168.73,168.68,35.28764892]
[1748541625061,42.25687393,168.73,168.68,56.80132366]
[1748541625938,5.92662834,168.73,168.69,21.51367474]
[1748541626327,27.44030308,168.73,168.68,56.80132366]
[1748541627149,36.66,168.75,168.69,40.58980831]
[1748541627323,5.92639361,168.74,168.71,21.51367474]
[1748541628154,6.1618,168.79,168.74,0.28432314]
[1748541628332,21.51367474,168.8,168.75,21.51367474]
[1748541628646,5.92452159,168.79,168.75,21.51367474]
[1748541628851,5.92415985,168.81,168.78,21.51367474]
[1748541629059,24.42767815,168.84,168.8,21.51367474]
[1748541629060,5.92351941,168.82,168.8,21.51367474]
[1748541629231,27.43574035,168.86,168.81,21.79799788]
[1748541629827,5.92206561,168.86,168.82,21.51367474]
[1748541630143,27.43574035,168.86,168.81,21.79799788]
[1748541630656,5.92206561,168.86,168.82,21.51367474]
[1748541631152,5.92206561,168.86,168.83,0.28432314]
[1748541633559,5.92206561,168.86,168.83,21.79799788]
[1748541633726,5.92206561,168.86,168.84,21.51367474]
[1748541633933,5.92066311,168.9,168.86,0.28432314]
[1748541634256,5.92066311,168.9,168.87,21.51367474]
[1748541634451,5.92066311,168.9,168.83,35.62]
[1748541634452,21.51367474,168.89,168.85,0.28432314]
[1748541634753,21.51367474,168.89,168.84,21.51367474]
[1748541635156,20.72232089,168.9,168.85,40.58980831]
[1748541635349,5.92066311,168.9,168.86,21.51367474]
[1748541636035,5.92066311,168.9,168.87,21.51367474]
[1748541636362,5.92066311,168.9,168.86,21.51367474]
[1748541636654,21.51367474,168.87,168.83,9.62]
[1748541636834,21.51367474,168.86,168.83,9.62]
[1748541637251,21.51367474,168.87,168.83,9.62]
[1748541637461,5.92241634,168.85,168.83,9.62]
[1748541637759,5.92241634,168.85,168.82,21.51367474]
[1748541637956,5.92241634,168.85,168.81,18.64964886]
[1748541638157,27.43609108,168.85,168.82,0.28432314]
[1748541639949,5.92241634,168.85,168.82,0.28432314]
[1748541640356,42.24213194,168.85,168.8,47.65583631]
[1748541640661,21.51367474,168.84,168.8,40.58980831]
[1748541640851,5.92241634,168.85,168.82,0.28432314]
[1748541641035,5.92241634,168.85,168.82,21.79799788]
[1748541641235,5.92241634,168.85,168.82,0.28432314]
[1748541642768,14.80404827,168.88,168.84,0.28432314]
[1748541642769,20.72541255,168.88,168.84,0.28432314]
[1748541642950,42.23908729,168.88,168.84,0.28432314]
[1748541644546,21.51367474,168.86,168.82,0.28432314]
[1748541644746,5.92206561,168.86,168.82,21.79799788]
[1748541646250,21.51367474,168.86,168.82,0.28432314]
[1748541646448,21.51367474,168.83,168.79,9.62]
[1748541646647,21.51367474,168.81,168.77,18.64964886]
[1748541646842,21.51367474,168.83,168.78,21.79799788]
[1748541647151,21.51367474,168.83,168.78,21.51367474]
[1748541647351,21.51367474,168.82,168.78,0.28432314]
[1748541647550,21.51367474,168.81,168.77,26.0]
[1748541647853,21.51367474,168.79,168.74,94.92]
[1748541648167,21.51367474,168.77,168.74,9.62]
[1748541648861,21.51367474,168.78,168.74,9.62]
[1748541649278,20.73459715,168.8,168.75,21.79799788]
[1748541649279,21.51367474,168.79,168.75,21.79799788]
[1748541649670,21.51367474,168.79,168.75,0.28432314]
[1748541650063,20.73459715,168.8,168.75,35.38121266]
[1748541650064,55.83148667,168.8,168.75,35.38121266]
[1748541650568,55.83148667,168.8,168.75,0.28432314]
[1748541651370,55.83148667,168.8,168.75,54.17302309]
[1748541654081,20.73459715,168.8,168.76,35.09688952]
[1748541654266,55.83148667,168.8,168.75,54.17302309]
[1748541654592,35.09688952,168.79,168.75,19.07613357]
[1748541655166,35.09688952,168.79,168.75,54.17302309]
[1748541655398,5.92381967,168.81,168.77,0.28432314]
[1748541655583,41.02070919,168.81,168.77,0.28432314]
[1748541655796,5.92381967,168.81,168.79,35.38121266]
[1748541656293,5.92381967,168.81,168.79,0.28432314]
[1748541657280,5.92346878,168.82,168.79,0.28432314]
[1748541657594,5.92346878,168.82,168.79,35.38121266]
[1748541657790,5.92346878,168.82,168.81,0.28432314]
[1748541658092,5.92241634,168.85,168.81,35.38121266]
[1748541658278,35.09688952,168.84,168.79,61.23905109]
[1748541658476,20.7284572,168.85,168.8,0.28432314]
[1748541658687,35.09688952,168.84,168.8,0.28432314]
[1748541659299,35.09688952,168.86,168.81,35.09688952]
[1748541659497,35.09688952,168.86,168.82,0.28432314]
[1748541660196,35.09688952,168.85,168.8,18.79181043]
[1748541660499,57.38600224,168.87,168.81,0.28432314]
[1748541660806,35.09688952,168.86,168.81,54.17302309]
[1748541661382,5.92241634,168.85,168.81,54.17302309]
[1748541663182,51.48428732,168.87,168.81,54.17302309]
[1748541663183,5.92171492,168.87,168.83,54.17302309]
[1748541664304,5.92171492,168.87,168.84,35.09688952]
[1748541664504,6.5295,168.92,168.88,0.14216157]
[1748541664803,5.92031259,168.91,168.89,0.14216157]
[1748541664988,5.92031259,168.91,168.9,0.28432314]
[1748541665188,5.92031259,168.91,168.85,26.0]
[1748541665189,41.01720211,168.91,168.86,9.62]
[1748541665391,35.09688952,168.9,168.87,0.28432314]
[1748541665589,42.58031259,168.91,168.87,35.38121266]
[1748541666184,42.58031259,168.91,168.87,0.28432314]
[1748541666389,92.47798359,168.91,168.87,0.28432314]
[1748541667289,35.09688952,168.9,168.86,9.62]
[1748541667511,35.09688952,168.88,168.86,9.62]
[1748541668013,35.09688952,168.89,168.86,9.62]
[1748541669111,5.92136428,168.88,168.86,9.62]
[1748541672317,5.92136428,168.88,168.8,49.10287811]
[1748541672318,21.51004501,168.87,168.82,18.64964886]
[1748541672624,21.51004501,168.83,168.81,9.62]
[1748541672803,21.51004501,168.83,168.79,18.64964886]
[1748541672999,21.51004501,168.83,168.8,0.28432314]
[1748541673901,42.56136428,168.88,168.83,0.14216157]
[1748541674226,5.92206561,168.86,168.83,0.42648471]
[1748541674431,5.92206561,168.86,168.83,0.28432314]
[1748541674592,21.51004501,168.84,168.81,29.3]
[1748541674796,20.72722965,168.86,168.76,50.81004501]
[1748541674797,21.51004501,168.82,168.76,50.81004501]
[1748541674994,21.51004501,168.81,168.77,18.64964886]
[1748541675208,21.51004501,168.82,168.77,40.15969387]
[1748541675517,21.51004501,168.82,168.78,0.28432314]
[1748541676314,5.92381967,168.81,168.77,40.15969387]
[1748541676527,5.92381967,168.81,168.78,0.14216157]
[1748541676694,5.92381967,168.81,168.78,0.28432314]
[1748541676901,21.51004501,168.79,168.75,38.92]
[1748541677300,21.51004501,168.79,168.76,0.28432314]
[1748541677620,21.51004501,168.8,168.76,0.28432314]
[1748541678193,5.92487261,168.78,168.76,0.28432314]
[1748541678422,27.43491762,168.78,168.75,38.92]
[1748541678603,27.43491762,168.78,168.75,9.62]
[1748541678811,21.51004501,168.76,168.73,29.3]
[1748541679125,21.51004501,168.75,168.71,18.64964886]
[1748541679338,21.51004501,168.75,168.72,0.28432314]
[1748541679827,21.51004501,168.74,168.71,18.64964886]
[1748541680119,21.51004501,168.75,168.71,18.64964886]
[1748541680322,5.92627711,168.74,168.71,18.64964886]
[1748541680709,5.92627711,168.74,168.72,0.28432314]
[1748541680913,27.43608948,168.75,168.72,0.28432314]
[1748541681313,5.92552357,168.77,168.74,40.58617858]
[1748541681500,5.92552357,168.77,168.74,19.07613357]
[1748541681700,27.43556858,168.77,168.74,19.07613357]
[1748541684118,5.92552357,168.77,168.74,40.58617858]
[1748541684930,5.92487261,168.78,168.75,21.51004501]
[1748541685130,5.92487261,168.78,168.76,0.28432314]
[1748541686410,42.24709915,168.78,168.74,29.3]
[1748541686616,21.51004501,168.75,168.74,29.3]
[1748541686827,21.51004501,168.76,168.74,29.3]
[1748541687024,36.66,168.77,168.74,29.3]
[1748541687025,21.51004501,168.75,168.74,29.3]
[1748541687517,21.51004501,168.76,168.74,29.3]
[1748541687720,20.73705414,168.78,168.74,29.3]
[1748541687721,57.41705414,168.78,168.74,29.3]
[1748541687934,57.41705414,168.78,168.74,50.81004501]
[1748541688315,78.92709915,168.78,168.74,29.3]
[1748541689226,78.92709915,168.78,168.73,51.09436815]
[1748541690617,42.60487261,168.78,168.75,21.79436815]
[1748541690939,42.60487261,168.78,168.75,0.28432314]
[1748541691138,21.51004501,168.77,168.73,29.3]
[1748541691346,21.51004501,168.77,168.74,0.28432314]
[1748541691838,5.92557478,168.76,168.74,0.28432314]
[1748541695144,42.24955674,168.76,168.74,29.3]
[1748541695350,58.19004501,168.75,168.74,29.3]
[1748541695518,58.19004501,168.75,168.69,28.26964886]
[1748541695519,66.18494501,168.75,168.69,9.62]
[1748541695842,21.51004501,168.71,168.68,9.28764892]
[1748541697221,21.51004501,168.69,168.68,9.28764892]
[1748541697447,58.19004501,168.69,168.68,9.28764892]
[1748541697922,64.79994501,168.69,168.68,9.28764892]
[1748541698247,66.38614501,168.69,168.68,9.28764892]
[1748541698930,44.8761,168.69,168.68,9.28764892]
[1748541699145,72.31417868,168.69,168.68,9.28764892]
[1748541699547,35.63417868,168.69,168.68,9.28764892]
[1748541699723,72.35417868,168.69,168.68,9.28764892]
[1748541699918,85.99010865,168.69,168.68,9.28764892]
[1748541700948,77.79400865,168.69,168.68,9.28764892]
[1748541702455,5.9270893,168.72,168.69,0.28432314]
[1748541702636,5.92627711,168.74,168.71,35.14597498]
[1748541702834,14.81278969,168.78,168.73,35.14597498]
[1748541702835,5.92601545,168.75,168.73,35.14597498]
[1748541703450,41.07119865,168.77,168.72,35.43029812]
[1748541703827,5.92522367,168.77,168.73,35.14597498]
[1748541704029,35.14597498,168.76,168.72,0.28432314]
[1748541704237,35.14597498,168.75,168.69,0.14216157]
[1748541704458,35.14597498,168.7,168.68,9.28764892]
[1748541704623,36.8,168.7,168.68,9.28764892]
[1748541704824,35.14597498,168.69,168.68,9.28764892]
[1748541705252,41.07400865,168.69,168.68,9.28764892]
[1748541705629,5.92803367,168.69,168.68,9.28764892]
[1748541705935,41.07400865,168.69,168.68,9.28764892]
[1748541706341,5.92803367,168.69,168.68,9.28764892]
[1748541709443,41.07400865,168.69,168.68,9.28764892]
[1748541709651,5.92803367,168.69,168.68,9.28764892]
[1748541712471,41.07400865,168.69,168.68,9.28764892]
[1748541713460,5.92803367,168.69,168.68,9.28764892]
[1748541713771,41.07400865,168.69,168.68,9.28764892]
[1748541715066,5.92803367,168.69,168.68,9.28764892]
[1748541715655,1.546,168.73,168.68,9.28764892]
[1748541715656,14.81549235,168.75,168.69,0.28432314]
[1748541715856,42.70627711,168.74,168.7,35.14597498]
[1748541716383,77.85225209,168.74,168.69,83.37994698]
[1748541716588,42.70627711,168.74,168.71,0.28432314]
[1748541716758,5.92627711,168.74,168.71,35.43029812]
[1748541716964,5.92592592,168.75,168.71,35.43029812]
[1748541717165,42.72592592,168.75,168.71,35.43029812]
[1748541717565,5.92592592,168.75,168.71,35.43029812]
[1748541717769,35.14597498,168.76,168.74,35.14597498]
[1748541717770,5.9256835,168.76,168.74,35.14597498]
[1748541718383,5.92534793,168.77,168.75,35.14597498]
[1748541718595,35.14597498,168.8,168.73,0.42648471]
[1748541718596,5.92417061,168.8,168.76,35.14597498]
[1748541718771,36.8,168.79,168.76,35.14597498]
[1748541719175,5.92417061,168.8,168.78,35.14597498]
[1748541719368,24.44759338,168.84,168.79,35.14597498]
[1748541719369,5.92311792,168.83,168.79,35.14597498]
[1748541719571,5.92311792,168.83,168.81,35.14597498]
[1748541720059,5.92311792,168.83,168.8,0.28432314]
[1748541720797,5.92311792,168.83,168.79,35.14597498]
[1748541720963,35.14597498,168.8,168.75,26.0]
[1748541721164,55.88180055,168.79,168.75,26.0]
[1748541721477,35.14597498,168.78,168.75,0.28432314]
[1748541722005,42.72452159,168.79,168.76,35.14597498]
[1748541722159,42.72452159,168.79,168.77,0.28432314]
[1748541722665,42.72452159,168.79,168.77,35.43029812]
[1748541723086,5.92522367,168.77,168.75,0.14216157]
[1748541723468,5.92478815,168.79,168.77,18.79181043]
[1748541723666,36.82,168.8,168.79,0.14216157]
[1748541723865,36.82,168.82,168.79,35.28813655]
[1748541724787,71.96597498,168.82,168.79,29.3]
[1748541724968,35.14597498,168.81,168.79,29.3]
[1748541725164,5.92417061,168.8,168.79,29.3]
[1748541725370,41.07014559,168.8,168.79,29.3]
[1748541725897,5.92417061,168.8,168.79,29.3]
[1748541727196,41.06979465,168.81,168.79,29.3]
[1748541727505,35.14597498,168.8,168.79,29.3]
[1748541727663,35.14597498,168.8,168.73,29.3]
[1748541727858,35.14597498,168.77,168.73,29.3]
[1748541728591,35.14597498,168.76,168.73,29.3]
[1748541729190,71.96597498,168.76,168.73,29.3]
[1748541729397,5.92592592,168.75,168.73,29.3]
[1748541732779,41.0719009,168.75,168.73,29.3]
[1748541733165,5.92592592,168.75,168.73,29.3]
[1748541733580,5.92592592,168.75,168.72,29.58432314]
[1748541734291,55.88671571,168.75,168.72,29.3]
[1748541734493,35.14597498,168.74,168.71,0.28432314]
[1748541735088,55.88671571,168.75,168.71,0.28432314]
[1748541738975,41.07295459,168.72,168.68,0.42648471]
[1748541739174,41.07295459,168.72,168.68,0.14216157]
[1748541739393,41.07295459,168.72,168.68,0.28432314]
[1748541739594,5.92697961,168.72,168.68,35.43029812]
[1748541739900,5.92697961,168.72,168.7,0.14216157]
[1748541742504,36.78,168.74,168.71,21.69392634]
[1748541743296,36.78,168.74,168.71,0.14216157]
[1748541744380,5.92662834,168.73,168.71,0.14216157]
[1748541744584,5.92662834,168.73,168.7,50.99392634]
[1748541746480,20.74319919,168.73,168.7,29.3]
[1748541746684,42.29496396,168.73,168.7,29.3]
[1748541747203,21.55176477,168.72,168.7,29.3]
[1748541747724,58.35176477,168.71,168.7,29.3]
[1748541748008,58.35176477,168.71,168.65,50.85176477]
[1748541748212,21.55176477,168.69,168.64,31.27176477]
[1748541748387,5.9283851,168.68,168.65,0.28432314]
[1748541749390,5.9283851,168.68,168.64,31.27176477]
[1748541749391,79.12111263,168.68,168.64,9.72]
[1748541749885,21.55176477,168.67,168.64,9.72]
[1748541750105,57.56934786,168.68,168.64,9.72]
[1748541750106,79.12111263,168.68,168.64,9.72]
[1748541750307,79.12111263,168.68,168.63,40.20141363]
[1748541750499,79.12111263,168.68,168.64,0.28432314]
[1748541751512,21.55176477,168.67,168.62,21.55176477]
[1748541751810,21.55176477,168.67,168.63,0.28432314]
[1748541753621,5.9290881,168.66,168.63,0.28432314]
[1748541754190,5.9290881,168.66,168.63,21.83608791]
[1748541754604,58.37176477,168.68,168.63,21.83608791]